bitfinex-derivatives/quotes_BTCF0:USTF0_20250501
["timestamp","ask_amount","ask_price","bid_price","bid_amount"]
[1746062708684,0.00704,94668.0,94667.0,2.94758819]
[1746062709691,0.007,94668.0,94667.0,2.94758819]
[1746062709984,0.00704,94668.0,94667.0,2.94758819]
[1746062710190,4e-05,94668.0,94667.0,2.94758819]
[1746062711177,0.0323,94678.0,94669.0,0.2112518]
[1746062711178,0.2112499,94670.0,94669.0,0.2112518]
[1746062711388,0.2112499,94670.0,94669.0,0.28]
[1746062711590,0.2112499,94670.0,94669.0,0.4912518]
[1746062712086,0.3332499,94670.0,94669.0,0.4912518]
[1746062712293,0.3362499,94670.0,94669.0,0.4922518]
[1746062712686,0.3382499,94670.0,94669.0,0.4922518]
[1746062718084,0.3372499,94670.0,94669.0,0.28]
[1746062718891,0.3362499,94670.0,94669.0,0.28]
[1746062720783,0.3362499,94670.0,94669.0,0.4912518]
[1746062722782,0.3362499,94670.0,94669.0,0.28]
[1746062724497,0.3362499,94670.0,94668.0,0.2112537]
[1746062724498,0.2112518,94669.0,94668.0,0.2112537]
[1746062724695,0.2752518,94669.0,94668.0,0.2112537]
[1746062725098,0.3972518,94669.0,94668.0,0.2112537]
[1746062725399,0.2112562,94667.0,94666.0,0.3608]
[1746062726193,0.3332562,94667.0,94666.0,0.3608]
[1746062726693,0.3362562,94667.0,94666.0,0.5720585]
[1746062728700,0.3362562,94667.0,94666.0,0.2112585]
[1746062728891,0.3362562,94667.0,94666.0,0.5720585]
[1746062730003,0.2112741,94659.0,94658.0,0.42644302]
[1746062730191,0.3332741,94659.0,94658.0,0.25191932]
[1746062730800,0.3968741,94659.0,94658.0,0.25191932]
[1746062731301,0.3978741,94659.0,94658.0,0.25291932]
[1746062737991,0.3978741,94659.0,94658.0,0.28571932]
[1746062740207,0.3659741,94659.0,94658.0,0.28571932]
[1746062749807,0.3659741,94659.0,94658.0,0.28571932]
[1746062752414,0.3659741,94659.0,94658.0,0.31871932]
[1746062753814,0.3659741,94659.0,94658.0,0.28591932]
[1746062754003,0.3659741,94659.0,94658.0,0.031]
[1746062754204,0.3659741,94659.0,94658.0,0.001]
[1746062754408,0.3989741,94659.0,94658.0,0.001]
[1746062755110,0.3989741,94659.0,94658.0,0.2122763]
[1746062755812,0.3989741,94659.0,94658.0,0.001]
[1746062759315,0.3989741,94659.0,94658.0,0.2122763]
[1746062774212,0.3659741,94659.0,94658.0,0.3622763]
[1746062774411,0.3659741,94659.0,94658.0,0.3932763]
[1746062774606,0.3660141,94659.0,94658.0,0.3932763]
[1746062774807,0.3660141,94659.0,94658.0,1.8932763]
[1746062775311,0.2440141,94659.0,94658.0,1.8932763]
[1746062782104,0.3660141,94659.0,94658.0,1.8932763]
[1746062783118,0.2440141,94659.0,94658.0,1.8932763]
[1746062788026,0.2450141,94659.0,94658.0,1.8932763]
[1746062788227,0.2460141,94659.0,94658.0,1.8922763]
[1746062788626,0.2460141,94659.0,94658.0,0.3922763]
[1746062792129,0.3680141,94659.0,94658.0,0.3922763]
[1746062793323,0.2460141,94659.0,94658.0,1.8922763]
[1746062794913,0.2460141,94659.0,94658.0,2.2530763]
[1746062797120,0.3680141,94659.0,94658.0,2.2530763]
[1746062798324,0.2460141,94659.0,94658.0,2.2530763]
[1746062798627,0.35346629,94679.0,94658.0,2.147444]
[1746062798925,0.14232571,94679.0,94678.0,0.5720317]
[1746062799126,0.14232571,94679.0,94678.0,0.8520317]
[1746062799321,0.14222729,94679.0,94678.0,2.3520317]
[1746062799524,0.14226729,94679.0,94678.0,2.3520317]
[1746062799822,0.14326729,94679.0,94678.0,2.3851317]
[1746062800029,0.14826729,94679.0,94678.0,2.3861317]
[1746062800323,0.14826729,94679.0,94678.0,2.4167317]
[1746062800525,0.14726729,94679.0,94678.0,2.4167317]
[1746062800718,0.15326729,94679.0,94678.0,2.4167317]
[1746062801114,0.15026729,94679.0,94678.0,2.4157317]
[1746062801525,0.15026729,94679.0,94678.0,2.5213517]
[1746062801724,0.15022729,94679.0,94678.0,2.5213517]
[1746062801917,0.15026729,94679.0,94678.0,2.5213517]
[1746062802223,0.01578458,94679.0,94678.0,2.5213517]
[1746062802429,0.01078458,94679.0,94678.0,2.5223517]
[1746062802628,0.00978458,94679.0,94678.0,2.5223517]
[1746062803124,0.00978458,94679.0,94678.0,2.5387317]
[1746062805132,0.00978458,94679.0,94678.0,2.4167317]
[1746062806224,0.00978458,94679.0,94678.0,2.5387317]
[1746062807429,0.00978458,94679.0,94678.0,2.9545317]
[1746062808231,0.00978458,94679.0,94678.0,2.8325317]
[1746062808431,0.04248458,94679.0,94678.0,2.8325317]
[1746062808931,0.04248458,94679.0,94678.0,2.4717317]
[1746062809122,0.04248458,94679.0,94678.0,2.8325317]
[1746062816419,0.04248458,94679.0,94678.0,2.4717317]
[1746062816731,0.04248458,94679.0,94678.0,2.8325317]
[1746062819232,0.04248458,94679.0,94678.0,2.4717317]
[1746062819431,0.04248458,94679.0,94678.0,2.8325317]
[1746062820221,0.0337,94679.0,94678.0,2.9381517]
[1746062820433,0.0326,94693.0,94685.0,0.2112161]
[1746062820635,0.0651,94693.0,94685.0,0.5557761]
[1746062820937,0.00104,94686.0,94685.0,0.5557761]
[1746062821135,0.00104,94686.0,94685.0,2.1203761]
[1746062821937,0.00404,94686.0,94685.0,2.1203761]
[1746062822136,0.00704,94686.0,94685.0,2.1213761]
[1746062822733,0.00889733,94686.0,94685.0,2.1213761]
[1746062822939,0.00704,94686.0,94685.0,2.1213761]
[1746062824941,0.00704,94686.0,94685.0,2.5371761]
[1746062827245,0.01502013,94686.0,94685.0,2.5371761]
[1746062827442,0.00704,94686.0,94685.0,2.5371761]
[1746062832051,0.01507558,94686.0,94685.0,2.5371761]
[1746062836456,0.01507558,94686.0,94685.0,3.2587761]
[1746062841256,0.01503558,94686.0,94685.0,3.2587761]
[1746062841456,0.01507558,94686.0,94685.0,3.2587761]
[1746062847362,1e-07,94686.0,94685.0,3.2587761]
[1746062848159,1e-07,94686.0,94685.0,3.3807761]
[1746062848464,4.01e-05,94686.0,94685.0,3.3807761]
[1746062849263,4.01e-05,94686.0,94685.0,3.2587761]
[1746062850755,4.01e-05,94686.0,94685.0,3.4185028]
[1746062852160,0.0326,94689.0,94685.0,3.4185028]
[1746062852161,0.0326,94689.0,94688.0,0.2112094]
[1746062852355,0.0651,94693.0,94692.0,0.2112005]
[1746062852558,0.0651,94693.0,94692.0,0.4912005]
[1746062852759,0.0651,94693.0,94692.0,1.9912005]
[1746062853067,0.0651,94693.0,94692.0,2.00172313]
[1746062853566,0.07307127,94693.0,94692.0,2.00172313]
[1746062853765,0.07307127,94693.0,94692.0,2.03352313]
[1746062854267,0.07307127,94693.0,94692.0,2.75512313]
[1746062854869,0.07607127,94693.0,94692.0,2.75512313]
[1746062855560,0.07907127,94693.0,94692.0,2.75612313]
[1746062857171,0.07907127,94693.0,94692.0,3.17192313]
[1746062860172,0.20107127,94693.0,94692.0,3.17192313]
[1746062864175,0.07907127,94693.0,94692.0,3.17192313]
[1746062864374,0.0015,94695.0,94694.0,0.211196]
[1746062864571,0.10763417,94698.0,94694.0,0.211196]
[1746062864572,0.10763417,94698.0,94694.0,0.3327985]
[1746062864778,0.10763417,94698.0,94697.0,0.2111893]
[1746062864967,0.10763417,94698.0,94697.0,1.9911893]
[1746062866077,0.11063417,94698.0,94697.0,1.9911893]
[1746062866277,0.11363417,94698.0,94697.0,1.9921893]
[1746062868076,0.00263417,94698.0,94697.0,1.9921893]
[1746062868976,0.00263417,94698.0,94697.0,2.4079893]
[1746062870076,0.00263417,94698.0,94697.0,2.4732893]
[1746062870674,0.00263417,94698.0,94697.0,3.1948893]
[1746062871069,0.00263417,94698.0,94697.0,2.4732893]
[1746062871265,0.00263417,94698.0,94697.0,3.1948893]
[1746062871470,0.00263417,94698.0,94697.0,3.2269693]
[1746062871673,0.00263417,94698.0,94697.0,3.1624893]
[1746062871871,0.03383417,94698.0,94697.0,3.2269693]
[1746062872178,0.15583417,94698.0,94697.0,3.2269693]
[1746062873672,0.15583417,94698.0,94697.0,3.2572693]
[1746062883688,0.15583417,94698.0,94697.0,2.5356693]
[1746062883990,0.15583417,94698.0,94697.0,3.2572693]
[1746062884489,0.15583417,94698.0,94697.0,2.5356693]
[1746062884788,0.15583417,94698.0,94697.0,3.2572693]
[1746062886189,0.15583417,94698.0,94697.0,1.6927893]
[1746062886391,0.36702127,94698.0,94697.0,1.4184]
[1746062886576,0.15583417,94698.0,94697.0,1.6295893]
[1746062887888,0.18603417,94698.0,94697.0,1.6295893]
[1746062888591,0.39722127,94698.0,94697.0,1.6295893]
[1746062892299,0.39722127,94698.0,94697.0,1.2137893]
[1746062894890,0.39722127,94698.0,94697.0,0.4921893]
[1746062895193,0.39722127,94698.0,94697.0,0.8529893]
[1746062899794,0.39722127,94698.0,94697.0,0.4921893]
[1746062900098,0.39722127,94698.0,94697.0,0.8529893]
[1746062909202,0.2112272,94680.0,94679.0,0.1597267]
[1746062909505,0.2112272,94680.0,94679.0,0.4109562]
[1746062910191,0.3332272,94680.0,94679.0,0.4428562]
[1746062910500,0.3935272,94680.0,94679.0,0.4428562]
[1746062910703,0.3935272,94680.0,94679.0,0.4458562]
[1746062911295,0.3935272,94680.0,94679.0,0.4478562]
[1746062911698,0.3935272,94680.0,94679.0,0.1966267]
[1746062912204,0.3935272,94680.0,94679.0,0.4078562]
[1746062912690,0.3935272,94680.0,94679.0,0.4058562]
[1746062912896,0.3935272,94680.0,94679.0,0.4068562]
[1746062913205,0.3935272,94680.0,94679.0,0.4058562]
[1746062913390,0.3935272,94680.0,94679.0,0.1946267]
[1746062913595,0.3935272,94680.0,94679.0,0.0339]
[1746062915803,0.7543272,94680.0,94679.0,0.0339]
[1746062916399,0.7553272,94680.0,94679.0,0.0329]
[1746062916592,0.7553272,94680.0,94679.0,0.0319]
[1746062917004,0.7553272,94680.0,94677.0,0.00158433]
[1746062917005,0.2112317,94678.0,94677.0,0.00158433]
[1746062917203,0.2112317,94678.0,94677.0,0.04158433]
[1746062917503,0.3168517,94678.0,94677.0,0.00158433]
[1746062917806,0.3480517,94678.0,94677.0,0.00158433]
[1746062918198,0.4700517,94678.0,94677.0,0.00158433]
[1746062918503,0.4700517,94678.0,94677.0,0.00258433]
[1746062918704,0.4720517,94678.0,94677.0,0.00258433]
[1746062919498,0.4720517,94678.0,94677.0,0.00358433]
[1746062919901,0.4730517,94678.0,94677.0,0.00258433]
[1746062921603,0.4740517,94678.0,94677.0,0.00258433]
[1746062926702,0.4740517,94678.0,94677.0,0.21381823]
[1746062926901,0.4740517,94678.0,94677.0,0.00258433]
[1746062927111,0.3372717,94678.0,94677.0,0.36381823]
[1746062928012,0.3372717,94678.0,94677.0,0.42511823]
[1746062928701,0.3372317,94678.0,94677.0,0.42511823]
[1746062928900,0.3372717,94678.0,94677.0,0.42511823]
[1746062931015,0.3372717,94678.0,94677.0,0.27511823]
[1746062933712,0.3372717,94678.0,94677.0,0.45511823]
[1746062935005,0.12604,94678.0,94677.0,0.45511823]
[1746062935205,0.21914076,94701.0,94700.0,0.2111826]
[1746062935416,0.2111804,94701.0,94700.0,0.4611826]
[1746062935901,0.2112204,94701.0,94700.0,0.5221826]
[1746062936210,0.2111804,94701.0,94700.0,0.5221826]
[1746062936410,0.2112204,94701.0,94700.0,0.5221826]
[1746062936610,0.2172204,94701.0,94700.0,0.5221826]
[1746062936807,0.2242204,94701.0,94700.0,0.5231826]
[1746062937503,0.22095359,94701.0,94700.0,0.5221826]
[1746062937707,0.22295359,94701.0,94700.0,0.5221826]
[1746062938109,0.34495359,94701.0,94700.0,0.5221826]
[1746062939101,0.22295359,94701.0,94700.0,0.5221826]
[1746062939300,0.22195359,94701.0,94700.0,0.5221826]
[1746062940112,0.34395359,94701.0,94700.0,0.5221826]
[1746062952217,0.34395359,94701.0,94700.0,0.311]
[1746062952422,0.2112027,94691.0,94690.0,0.2639992]
[1746062952610,0.2112027,94691.0,94690.0,0.3639992]
[1746062952920,0.2112027,94691.0,94690.0,0.37441915]
[1746062953120,0.3663027,94691.0,94690.0,0.37441915]
[1746062953523,0.3663027,94691.0,94690.0,0.37541915]
[1746062953728,0.4511038,94691.0,94690.0,0.40771915]
[1746062954219,0.4511038,94691.0,94690.0,0.1333]
[1746062954415,0.4511038,94691.0,94690.0,0.001]
[1746062955214,0.4511038,94691.0,94690.0,0.002]
[1746062961110,0.4511038,94691.0,94690.0,0.001]
[1746062961317,0.4511038,94691.0,94690.0,0.002]
[1746062962828,0.2112072,94689.0,94688.0,0.2112094]
[1746062963219,0.3332072,94689.0,94688.0,0.2112094]
[1746062964229,0.3332072,94689.0,94688.0,0.2122094]
[1746062964428,0.3332072,94689.0,94688.0,0.2132094]
[1746062964629,0.3332072,94689.0,94688.0,0.002]
[1746062969132,0.3332072,94689.0,94688.0,0.001]
[1746062969434,0.3332072,94689.0,94688.0,0.002]
[1746062970337,0.3332072,94689.0,94688.0,0.001]
[1746062970631,0.3332072,94689.0,94688.0,0.002]
[1746062975140,0.6940072,94689.0,94688.0,0.002]
[1746062975640,0.3332072,94689.0,94688.0,0.002]
[1746062975838,0.6940072,94689.0,94688.0,0.002]
[1746062978645,0.6940072,94689.0,94688.0,0.001]
[1746062978847,0.6940072,94689.0,94688.0,0.002]
[1746062979439,0.6940072,94689.0,94688.0,0.001]
[1746062983840,0.6940072,94689.0,94688.0,0.0319]
[1746062992851,0.3332072,94689.0,94688.0,0.0319]
[1746062993246,0.6940072,94689.0,94688.0,0.0319]
[1746062994245,0.6940072,94689.0,94688.0,0.0309]
[1746063000353,0.6940072,94689.0,94667.0,0.0528139]
[1746063000354,0.2112317,94678.0,94677.0,0.00158433]
[1746063000657,0.5720317,94678.0,94677.0,0.00158433]
[1746063001251,0.7591317,94678.0,94677.0,0.00158433]
[1746063001449,0.7591317,94678.0,94677.0,0.00258433]
[1746063001651,0.7591317,94678.0,94677.0,0.00358433]
[1746063002653,0.3983317,94678.0,94677.0,0.00358433]
[1746063003959,0.3983317,94678.0,94677.0,0.21481823]
[1746063004159,0.3332717,94678.0,94677.0,0.36541823]
[1746063004462,0.12204,94678.0,94677.0,0.36541823]
[1746063004647,0.122,94678.0,94677.0,0.36541823]
[1746063004847,0.12204,94678.0,94677.0,0.36541823]
[1746063005158,4e-05,94678.0,94677.0,0.36541823]
[1746063005546,4e-05,94678.0,94677.0,0.36441823]
[1746063005753,4e-05,94678.0,94677.0,0.39731823]
[1746063005957,4e-05,94678.0,94677.0,0.50193823]
[1746063006163,0.13464119,94682.0,94681.0,0.211225]
[1746063006462,0.13464119,94682.0,94681.0,0.471225]
[1746063006862,0.34586399,94682.0,94681.0,0.471225]
[1746063007056,0.34586399,94682.0,94681.0,0.533425]
[1746063008262,0.34586399,94682.0,94681.0,0.655425]
[1746063009054,0.34686399,94682.0,94681.0,0.655425]
[1746063009255,0.2122228,94682.0,94681.0,0.533425]
[1746063009661,0.001,94682.0,94681.0,0.533425]
[1746063009961,5.401e-05,94687.0,94686.0,0.2112139]
[1746063010162,0.2112036,94691.0,94690.0,0.2112049]
[1746063010462,0.2112036,94691.0,94690.0,0.4212049]
[1746063012052,0.00773319,94701.0,94690.0,0.315608]
[1746063012257,0.39863359,94698.0,94697.0,0.2111893]
[1746063012461,0.3986876,94698.0,94697.0,0.4711893]
[1746063012662,0.26404641,94698.0,94697.0,0.4711893]
[1746063013067,0.38604641,94698.0,94697.0,0.4711893]
[1746063013364,0.38604641,94698.0,94697.0,0.5029893]
[1746063013862,0.41844641,94698.0,94697.0,0.5029893]
[1746063014062,0.29644641,94698.0,94697.0,0.5029893]
[1746063016069,0.29744641,94698.0,94697.0,0.5029893]
[1746063017071,0.29744641,94698.0,94697.0,0.51373647]
[1746063018174,0.24464931,94698.0,94697.0,0.51373647]
[1746063018471,0.24464111,94698.0,94697.0,0.51373647]
[1746063019372,0.03345401,94698.0,94697.0,0.51373647]
[1746063019580,0.0334,94698.0,94697.0,0.51373647]
[1746063019775,0.2445871,94698.0,94697.0,0.5029893]
[1746063020073,0.4287271,94698.0,94697.0,0.5029893]
[1746063026080,0.4287271,94698.0,94697.0,0.26]
[1746063026574,0.211196,94694.0,94693.0,0.2111976]
[1746063027086,0.211196,94694.0,94693.0,0.2211976]
[1746063027263,0.333196,94694.0,94693.0,0.2211976]
[1746063027463,0.394496,94694.0,94693.0,0.2211976]
[1746063031474,0.394536,94694.0,94693.0,0.2211976]
[1746063041780,0.2112228,94682.0,94680.0,0.0528066]
[1746063041986,0.2112317,94678.0,94677.0,0.16131103]
[1746063042289,0.5720317,94678.0,94677.0,0.16131103]
[1746063042883,0.6352317,94678.0,94677.0,0.37254493]
[1746063043086,0.7572317,94678.0,94677.0,0.21281823]
[1746063043881,0.7572317,94678.0,94677.0,0.21481823]
[1746063044083,0.7572317,94678.0,94677.0,0.21681823]
[1746063045790,0.7572317,94678.0,94677.0,0.21581823]
[1746063049678,0.7572317,94678.0,94677.0,0.39581823]
[1746063049890,0.7572317,94678.0,94677.0,0.42781823]
[1746063050377,0.7572317,94678.0,94677.0,0.46101823]
[1746063053388,0.3964317,94678.0,94677.0,0.46101823]
[1746063053584,0.7572317,94678.0,94677.0,0.46101823]
[1746063056290,0.7263317,94678.0,94677.0,0.46101823]
[1746063058189,0.3655317,94678.0,94677.0,0.46101823]
[1746063060491,0.3655317,94678.0,94677.0,0.39581823]
[1746063061097,0.3655317,94678.0,94677.0,0.21581823]
[1746063063389,0.3655317,94678.0,94677.0,0.00458433]
[1746063065095,0.3655317,94678.0,94677.0,0.00258433]
[1746063065295,0.3655317,94678.0,94677.0,0.00458433]
[1746063065802,0.3655317,94678.0,94677.0,0.00358433]
[1746063066687,0.3655317,94678.0,94677.0,0.00258433]
[1746063066892,0.3655317,94678.0,94677.0,0.00458433]
[1746063067092,0.3655317,94678.0,94677.0,0.24911823]
[1746063068195,0.3655317,94678.0,94677.0,0.24811823]
[1746063068588,0.3655317,94678.0,94677.0,0.24911823]
[1746063068986,0.3655317,94678.0,94677.0,0.25011823]
[1746063069698,0.3655317,94678.0,94677.0,0.24811823]
[1746063070091,0.3655317,94678.0,94677.0,0.25011823]
[1746063071203,0.3655317,94678.0,94677.0,0.24811823]
[1746063071394,0.3655317,94678.0,94677.0,0.25011823]
[1746063071792,0.3655317,94678.0,94677.0,0.24811823]
[1746063071998,0.3655317,94678.0,94677.0,0.25011823]
[1746063076499,0.3655317,94678.0,94677.0,0.00558433]
[1746063081607,0.3655317,94678.0,94677.0,0.00458433]
[1746063081809,0.7263317,94678.0,94677.0,0.00458433]
[1746063082406,0.7263317,94678.0,94677.0,0.00358433]
[1746063089716,0.7263317,94678.0,94677.0,0.21481823]
[1746063090908,0.3655317,94678.0,94677.0,0.37481823]
[1746063091108,0.3655717,94678.0,94677.0,0.40761823]
[1746063091518,0.3332717,94678.0,94677.0,0.40761823]
[1746063091719,0.3332317,94678.0,94677.0,0.40761823]
[1746063092419,0.3332717,94678.0,94677.0,0.40761823]
[1746063094312,0.12204,94678.0,94677.0,0.51323823]
[1746063094705,0.122,94678.0,94677.0,0.51323823]
[1746063094911,0.12204,94678.0,94677.0,0.51323823]
[1746063095106,4e-05,94678.0,94677.0,0.40761823]
[1746063095617,0.2112717,94678.0,94677.0,0.40761823]
[1746063096108,0.3332717,94678.0,94677.0,0.19638433]
[1746063096316,0.3332717,94678.0,94677.0,0.22728433]
[1746063096516,0.3661717,94678.0,94677.0,0.19638433]
[1746063096713,0.3970717,94678.0,94677.0,0.19638433]
[1746063097216,0.4292717,94678.0,94677.0,0.19638433]
[1746063097716,0.4292717,94678.0,94677.0,0.03638433]
[1746063099313,0.4292717,94678.0,94677.0,0.24761823]
[1746063101925,0.4292717,94678.0,94677.0,0.00358433]
[1746063105928,0.4292717,94678.0,94677.0,0.03638433]
[1746063109228,0.4292717,94678.0,94677.0,0.00358433]
[1746063111218,0.4292717,94678.0,94677.0,0.03658433]
[1746063111614,0.4292717,94678.0,94677.0,0.24781823]
[1746063113319,0.4292717,94678.0,94677.0,0.03658433]
[1746063115227,0.2112719,94660.0,94654.0,0.00158468]
[1746063115432,0.5720719,94660.0,94659.0,0.4110008]
[1746063116121,0.6940719,94660.0,94659.0,0.4110008]
[1746063116321,0.6940719,94660.0,94659.0,0.1997267]
[1746063116523,0.7283719,94660.0,94659.0,0.4150008]
[1746063116725,0.7283719,94660.0,94659.0,0.4491008]
[1746063117136,0.7273719,94660.0,94659.0,0.4491008]
[1746063117327,0.7283719,94660.0,94659.0,0.4491008]
[1746063117726,0.7283719,94660.0,94659.0,0.4461008]
[1746063117925,0.7283719,94660.0,94659.0,0.2368267]
[1746063118833,0.7283719,94660.0,94659.0,0.0371]
[1746063119033,0.7273719,94660.0,94659.0,0.0361]
[1746063119935,0.7273719,94660.0,94659.0,0.005]
[1746063122228,0.7274119,94660.0,94659.0,0.005]
[1746063123735,0.7274119,94660.0,94659.0,0.2162741]
[1746063124234,0.7273719,94660.0,94659.0,0.2162741]
[1746063124432,0.7274119,94660.0,94659.0,0.2162741]
[1746063124731,0.6941119,94660.0,94659.0,0.2162741]
[1746063124933,0.6941119,94660.0,94659.0,0.3962741]
[1746063125131,0.3332719,94660.0,94659.0,0.3962741]
[1746063125432,0.3333119,94660.0,94659.0,0.3962741]
[1746063127130,0.3332719,94660.0,94659.0,0.3962741]
[1746063127433,0.3333119,94660.0,94659.0,0.3962741]
[1746063128934,0.12204,94660.0,94659.0,0.3962741]
[1746063129237,0.211271,94661.0,94660.0,0.2112719]
[1746063129430,0.211271,94661.0,94660.0,0.5132719]
[1746063129631,0.211271,94661.0,94660.0,0.6189119]
[1746063130335,0.211271,94661.0,94660.0,0.6219119]
[1746063130635,0.211271,94661.0,94660.0,0.6239119]
[1746063131635,0.01267,94664.0,94661.0,0.0528174]
[1746063131838,0.2239329,94664.0,94663.0,0.2112652]
[1746063132138,0.3332629,94664.0,94663.0,0.4912652]
[1746063133136,0.3332629,94664.0,94663.0,0.4932652]
[1746063133735,0.3332629,94664.0,94663.0,0.4952652]
[1746063133927,0.122,94664.0,94663.0,0.4952652]
[1746063134131,0.29486411,94668.0,94667.0,0.2112562]
[1746063134337,0.29486411,94668.0,94667.0,0.4712562]
[1746063134537,0.26412411,94668.0,94667.0,0.4712562]
[1746063135130,0.2640701,94668.0,94667.0,0.5328562]
[1746063135332,0.3860701,94668.0,94667.0,0.5328562]
[1746063135531,0.3861101,94668.0,94667.0,0.5338562]
[1746063136940,0.3861101,94668.0,94667.0,0.5348562]
[1746063137637,0.3860701,94668.0,94667.0,0.5348562]
[1746063137839,0.3861101,94668.0,94667.0,0.5348562]
[1746063143637,0.12204,94668.0,94667.0,0.5348562]
[1746063143940,0.2640511,94678.0,94677.0,0.2112317]
[1746063144136,0.2640511,94678.0,94677.0,0.5454317]
[1746063144441,0.2949511,94678.0,94677.0,0.55580906]
[1746063145045,0.2979911,94678.0,94677.0,0.55580906]
[1746063145245,0.4199911,94678.0,94677.0,0.55580906]
[1746063146137,0.3671832,94678.0,94677.0,0.55580906]
[1746063146347,0.3651832,94678.0,94677.0,0.55880906]
[1746063146644,0.3641832,94678.0,94677.0,0.56180906]
[1746063146945,0.3943832,94678.0,94677.0,0.56180906]
[1746063147645,0.3943832,94678.0,94677.0,0.55880906]
[1746063147845,0.3943832,94678.0,94677.0,0.56080906]
[1746063148748,0.3943832,94678.0,94677.0,0.55780906]
[1746063148941,0.3943832,94678.0,94677.0,0.56080906]
[1746063149448,0.3943832,94678.0,94677.0,0.56180906]
[1746063150049,0.3943832,94678.0,94677.0,0.56080906]
[1746063151049,0.3943832,94678.0,94677.0,0.52910906]
[1746063151849,0.3943832,94678.0,94677.0,0.49790906]
[1746063153046,0.18314,94678.0,94677.0,0.49790906]
[1746063153351,0.15294,94678.0,94677.0,0.49790906]
[1746063153548,0.3641717,94678.0,94677.0,0.53100906]
[1746063153751,0.3641317,94678.0,94677.0,0.53100906]
[1746063154542,0.3641717,94678.0,94677.0,0.53100906]
[1746063154952,0.3641717,94678.0,94677.0,0.49790906]
[1746063155345,0.3641717,94678.0,94677.0,0.56202906]
[1746063156258,0.3641717,94678.0,94677.0,0.53072906]
[1746063158154,0.3641717,94678.0,94677.0,0.56092906]
[1746063158357,0.15294,94678.0,94677.0,0.56092906]
[1746063158555,0.3641717,94678.0,94677.0,0.56092906]
[1746063161559,0.3641717,94678.0,94677.0,0.55792906]
[1746063161759,0.3641717,94678.0,94677.0,0.55992906]
[1746063162254,0.3641717,94678.0,94677.0,0.55792906]
[1746063162446,0.3641717,94678.0,94677.0,0.55992906]
[1746063163659,0.0528056,94683.0,94677.0,0.55992906]
[1746063163660,0.06052839,94701.0,94694.0,0.211196]
[1746063163861,0.00157291,94695.0,94694.0,0.441196]
[1746063164064,0.00157291,94695.0,94694.0,1.941196]
[1746063164360,0.0015,94695.0,94694.0,1.941196]
[1746063164657,0.00154,94695.0,94694.0,1.972296]
[1746063164859,0.00354,94695.0,94694.0,1.972296]
[1746063165060,0.00354,94695.0,94694.0,2.005596]
[1746063165061,0.03534,94695.0,94694.0,2.005596]
[1746063166056,0.03634,94695.0,94694.0,2.005596]
[1746063166963,0.03334,94695.0,94694.0,2.005596]
[1746063167165,0.03634,94695.0,94694.0,2.005596]
[1746063170364,0.03634,94695.0,94694.0,2.02125821]
[1746063171265,0.03634,94695.0,94694.0,2.005596]
[1746063172065,0.03534,94695.0,94694.0,2.007596]
[1746063172768,0.03334,94695.0,94694.0,2.009596]
[1746063173663,0.03334,94695.0,94694.0,1.978496]
[1746063174667,0.2445338,94695.0,94694.0,1.945196]
[1746063174857,0.2445338,94695.0,94694.0,0.234]
[1746063175058,0.6053338,94695.0,94694.0,0.234]
[1746063175259,0.2445338,94695.0,94694.0,0.234]
[1746063175563,0.2445338,94695.0,94694.0,0.445196]
[1746063177175,0.2445338,94695.0,94694.0,0.443196]
[1746063177467,0.2445338,94695.0,94694.0,0.445196]
[1746063179269,0.2445338,94695.0,94694.0,0.443196]
[1746063179760,0.2445338,94695.0,94694.0,0.445196]
[1746063179960,0.2445338,94695.0,94694.0,0.234]
[1746063180168,0.2445338,94695.0,94694.0,0.445196]
[1746063181670,0.2445338,94695.0,94694.0,0.443196]
[1746063181872,0.2445338,94695.0,94694.0,0.444196]
[1746063182373,0.2445338,94695.0,94694.0,0.442196]
[1746063182561,0.2445338,94695.0,94694.0,0.443196]
[1746063182969,0.2445338,94695.0,94694.0,0.442196]
[1746063183270,0.2445338,94695.0,94694.0,0.443196]
[1746063184976,0.03334,94695.0,94694.0,0.443196]
[1746063185270,0.0333,94695.0,94694.0,0.443196]
[1746063185475,0.03334,94695.0,94694.0,0.45916044]
[1746063185775,0.0333,94695.0,94694.0,0.48996044]
[1746063185976,0.03334,94695.0,94694.0,0.4899596]
[1746063186369,0.03334,94695.0,94694.0,0.473996]
[1746063189466,0.03334,94695.0,94694.0,0.472996]
[1746063189667,0.03334,94695.0,94694.0,0.479996]
[1746063190770,0.00154,94695.0,94694.0,0.479996]
[1746063191274,0.0015,94695.0,94694.0,0.479996]
[1746063191473,0.00154,94695.0,94694.0,0.479996]
[1746063192078,0.00154,94695.0,94694.0,0.544076]
[1746063192470,0.00154,94695.0,94694.0,0.56002758]
[1746063192984,0.00154,94695.0,94694.0,0.56002754]
[1746063193577,0.00154,94695.0,94694.0,0.56007116]
[1746063196779,0.00154,94695.0,94694.0,0.56007454]
[1746063198180,0.00154,94695.0,94694.0,0.5601646]
[1746063198670,0.00154,94695.0,94694.0,0.56020536]
[1746063200284,0.00154,94695.0,94694.0,0.55920536]
[1746063200475,0.00154,94695.0,94694.0,0.55915612]
[1746063201284,0.00154,94695.0,94694.0,0.55515612]
[1746063201481,0.00154,94695.0,94694.0,0.55815612]
[1746063202082,0.00154,94695.0,94694.0,0.55515612]
[1746063202282,0.00154,94695.0,94694.0,0.55815612]
[1746063202481,0.03174,94695.0,94694.0,0.55816005]
[1746063204385,0.03174,94695.0,94694.0,0.52736005]
[1746063204584,0.06204,94695.0,94694.0,0.52736005]
[1746063204882,0.03174,94695.0,94694.0,0.52736005]
[1746063205077,0.2732338,94695.0,94694.0,0.52736005]
[1746063205274,0.2732338,94695.0,94694.0,0.46328005]
[1746063205477,0.2732338,94695.0,94694.0,0.46028005]
[1746063205683,0.2732338,94695.0,94694.0,0.46328005]
[1746063206185,0.2732338,94695.0,94694.0,0.46228005]
[1746063206375,0.06204,94695.0,94694.0,0.46228005]
[1746063206577,0.062,94695.0,94694.0,0.46028005]
[1746063206771,0.062,94695.0,94694.0,0.46228005]
[1746063206976,0.06424,94695.0,94694.0,0.55708005]
[1746063207188,0.06424,94695.0,94694.0,0.55608005]
[1746063207797,0.06424,94695.0,94694.0,0.55602157]
[1746063208398,0.06424,94695.0,94694.0,0.55602228]
[1746063208591,0.0642,94695.0,94694.0,0.55502269]
[1746063208790,0.06424,94695.0,94694.0,0.55502269]
[1746063209600,0.06424,94695.0,94694.0,0.538996]
[1746063209900,0.06424,94695.0,94694.0,0.536996]
[1746063210096,0.034,94695.0,94694.0,0.55602143]
[1746063210298,0.03404,94695.0,94694.0,0.539996]
[1746063210700,0.03404,94695.0,94694.0,0.541996]
[1746063211189,0.03404,94695.0,94694.0,0.5580369]
[1746063211390,0.03404,94695.0,94694.0,0.5550369]